{"text_format":"3","workbook":"xlsx","n_sheets":2,"sheets":["Dépenses","Catégorie"],"not_rendered":{"defined_names":5},"read":"whole","date_system":"1900"}

{"sheet":"Dépenses","index":0,"n_rows":25,"n_cols":7,"rows_kept":25,"merged":[[0,1,0,5],[1,1,1,6]]}
[null,"BUDGET DES DÉPENSES",{"$nulls":4},{"$f":"TODAY()","v":"2018-07-11"}]
[null,"Nom de la société"]
[null,"Dépense","Catégorie","Budgété","Réel","Différence ($)","Différence (%)"]
[null,"Publicité","Fonctionnement",null,null,{"$f":"IFERROR(SUM(Dépenses[Budgété]-Dépenses[Réel]), \"\")","v":0},{"$f":"IFERROR(SUM(Dépenses[Différence ($)]/Dépenses[Budgété]),\"\")","v":""}]
[null,"Dettes","Fonctionnement",null,null,{"$f":"IFERROR(SUM(Dépenses[Budgété]-Dépenses[Réel]), \"\")","v":0},{"$f":"IFERROR(SUM(Dépenses[Différence ($)]/Dépenses[Budgété]),\"\")","v":""}]
[null,"Avantages sociaux","Fonctionnement",null,null,{"$f":"IFERROR(SUM(Dépenses[Budgété]-Dépenses[Réel]), \"\")","v":0},{"$f":"IFERROR(SUM(Dépenses[Différence ($)]/Dépenses[Budgété]),\"\")","v":""}]
[null,"Approvisionnement","Fonctionnement",null,null,{"$f":"IFERROR(SUM(Dépenses[Budgété]-Dépenses[Réel]), \"\")","v":0},{"$f":"IFERROR(SUM(Dépenses[Différence ($)]/Dépenses[Budgété]),\"\")","v":""}]
[null,"Affranchissement","Fonctionnement",null,null,{"$f":"IFERROR(SUM(Dépenses[Budgété]-Dépenses[Réel]), \"\")","v":0},{"$f":"IFERROR(SUM(Dépenses[Différence ($)]/Dépenses[Budgété]),\"\")","v":""}]
[null,"Location ou prêt immobilier","Fonctionnement",null,null,{"$f":"IFERROR(SUM(Dépenses[Budgété]-Dépenses[Réel]), \"\")","v":0},{"$f":"IFERROR(SUM(Dépenses[Différence ($)]/Dépenses[Budgété]),\"\")","v":""}]
[null,"Dépenses commerciales","Fonctionnement",null,null,{"$f":"IFERROR(SUM(Dépenses[Budgété]-Dépenses[Réel]), \"\")","v":0},{"$f":"IFERROR(SUM(Dépenses[Différence ($)]/Dépenses[Budgété]),\"\")","v":""}]
[null,"Taxes","Fonctionnement",null,null,{"$f":"IFERROR(SUM(Dépenses[Budgété]-Dépenses[Réel]), \"\")","v":0},{"$f":"IFERROR(SUM(Dépenses[Différence ($)]/Dépenses[Budgété]),\"\")","v":""}]
[null,"Services publics","Fonctionnement",null,null,{"$f":"IFERROR(SUM(Dépenses[Budgété]-Dépenses[Réel]), \"\")","v":0},{"$f":"IFERROR(SUM(Dépenses[Différence ($)]/Dépenses[Budgété]),\"\")","v":""}]
[null,"Autres","Fonctionnement",null,null,{"$f":"IFERROR(SUM(Dépenses[Budgété]-Dépenses[Réel]), \"\")","v":0},{"$f":"IFERROR(SUM(Dépenses[Différence ($)]/Dépenses[Budgété]),\"\")","v":""}]
[null,"Assurance","Fonctionnement",null,null,{"$f":"IFERROR(SUM(Dépenses[Budgété]-Dépenses[Réel]), \"\")","v":0},{"$f":"IFERROR(SUM(Dépenses[Différence ($)]/Dépenses[Budgété]),\"\")","v":""}]
[null,"Intérêts","Fonctionnement",null,null,{"$f":"IFERROR(SUM(Dépenses[Budgété]-Dépenses[Réel]), \"\")","v":0},{"$f":"IFERROR(SUM(Dépenses[Différence ($)]/Dépenses[Budgété]),\"\")","v":""}]
[null,"Téléphone","Fonctionnement",null,null,{"$f":"IFERROR(SUM(Dépenses[Budgété]-Dépenses[Réel]), \"\")","v":0},{"$f":"IFERROR(SUM(Dépenses[Différence ($)]/Dépenses[Budgété]),\"\")","v":""}]
[null,"Entretien ou réparations","Fonctionnement",null,null,{"$f":"IFERROR(SUM(Dépenses[Budgété]-Dépenses[Réel]), \"\")","v":0},{"$f":"IFERROR(SUM(Dépenses[Différence ($)]/Dépenses[Budgété]),\"\")","v":""}]
[null,"Frais juridiques","Fonctionnement",null,null,{"$f":"IFERROR(SUM(Dépenses[Budgété]-Dépenses[Réel]), \"\")","v":0},{"$f":"IFERROR(SUM(Dépenses[Différence ($)]/Dépenses[Budgété]),\"\")","v":""}]
[null,"Amortissement","Fonctionnement",null,null,{"$f":"IFERROR(SUM(Dépenses[Budgété]-Dépenses[Réel]), \"\")","v":0},{"$f":"IFERROR(SUM(Dépenses[Différence ($)]/Dépenses[Budgété]),\"\")","v":""}]
[null,"Expédition","Fonctionnement",null,null,{"$f":"IFERROR(SUM(Dépenses[Budgété]-Dépenses[Réel]), \"\")","v":0},{"$f":"IFERROR(SUM(Dépenses[Différence ($)]/Dépenses[Budgété]),\"\")","v":""}]
[null,"Stockage","Fonctionnement",null,null,{"$f":"IFERROR(SUM(Dépenses[Budgété]-Dépenses[Réel]), \"\")","v":0},{"$f":"IFERROR(SUM(Dépenses[Différence ($)]/Dépenses[Budgété]),\"\")","v":""}]
[null,"Magasin","Personnel",null,null,{"$f":"IFERROR(SUM(Dépenses[Budgété]-Dépenses[Réel]), \"\")","v":0},{"$f":"IFERROR(SUM(Dépenses[Différence ($)]/Dépenses[Budgété]),\"\")","v":""}]
[null,"Vendeurs","Personnel",null,null,{"$f":"IFERROR(SUM(Dépenses[Budgété]-Dépenses[Réel]), \"\")","v":0},{"$f":"IFERROR(SUM(Dépenses[Différence ($)]/Dépenses[Budgété]),\"\")","v":""}]
[null,"Autres","Personnel",null,null,{"$f":"IFERROR(SUM(Dépenses[Budgété]-Dépenses[Réel]), \"\")","v":0},{"$f":"IFERROR(SUM(Dépenses[Différence ($)]/Dépenses[Budgété]),\"\")","v":""}]
[null,"Dépenses totales",null,{"$f":"IFERROR(SUM(Dépenses[Budgété]), \"\")","v":0},{"$f":"IFERROR(SUM(Dépenses[Réel]), \"\")","v":0},{"$f":"IFERROR(SUM(Dépenses[Différence ($)]), \"\")","v":0},{"$f":"IFERROR(SUM(Dépenses[[#Totals],[Différence ($)]]/Dépenses[[#Totals],[Budgété]]),\"\")","v":""}]

{"sheet":"Catégorie","index":1,"n_rows":4,"n_cols":2,"rows_kept":4}
[null,"Recherche de catégorie"]
[null,"Catégorie"]
[null,"Fonctionnement"]
[null,"Personnel"]